fUST/lending_fUST_20240904
["ID","MTS","AMOUNT","RATE_DAILY","PERIOD"]
[337075448,1725412255223,-500.92558859,0.00028614,2]
[337075450,1725412255233,-500.0,0.00028614,2]
[337075452,1725412255242,-500.0,0.00028614,2]
[337075454,1725412255252,-500.0,0.00028614,2]
[337075456,1725412255264,-501.20539999,0.00028614,2]
[337075459,1725412255275,-500.0,0.00028614,2]
[337075461,1725412255285,-500.0,0.00028614,2]
[337075463,1725412255294,-500.0,0.00028614,2]
[337075465,1725412255304,-500.0,0.00028614,2]
[337075467,1725412255313,-501.72845881,0.00028614,2]
[337075469,1725412255323,-500.0,0.00028614,2]
[337075471,1725412255332,-500.0,0.00028614,2]
[337075473,1725412255342,-500.0,0.00028614,2]
[337075475,1725412255353,-500.0,0.00028614,2]
[337075477,1725412255362,-502.50468655,0.00028614,2]
[337075479,1725412255373,-500.0,0.00028614,2]
[337075481,1725412255386,-500.0,0.00028614,2]
[337075484,1725412255398,-500.0,0.00028614,2]
[337075486,1725412255411,-500.0,0.00028614,2]
[337075488,1725412255421,-501.24003046,0.00028614,2]
[337075490,1725412255431,-514.41121906,0.00028614,2]
[337075492,1725412255442,-500.0,0.00028614,2]
[337075495,1725412255454,-771.98,0.00028614,2]
[337075497,1725412255464,-500.0,0.00028614,2]
[337075499,1725412255473,-500.0,0.00028614,2]
[337075501,1725412255483,-500.0,0.00028614,2]
[337075503,1725412255493,-500.0,0.00028614,2]
[337075505,1725412255502,-500.0,0.00028614,2]
[337075507,1725412255512,-501.47578019,0.00028614,2]
[337075509,1725412255524,-500.0,0.00028614,2]
[337075511,1725412255536,-500.0,0.00028614,2]
[337075514,1725412255545,-322.01386978,0.00028614,2]
[337075516,1725412255557,-500.0,0.00028614,2]
[337075518,1725412255568,-500.0,0.00028614,2]
[337075520,1725412255578,-500.0,0.00028614,2]
[337075522,1725412255588,-549.75,0.00028614,2]
[337075524,1725412255599,-500.0,0.00028614,2]
[337075526,1725412255609,-500.0,0.00028614,2]
[337075528,1725412255618,-774.12,0.00028614,2]
[337075530,1725412255628,-500.0,0.00028614,2]
[337075533,1725412255640,-500.0,0.00028614,2]
[337075535,1725412255650,-500.0,0.00028614,2]
[337075537,1725412255660,-500.0,0.00028614,2]
[337075539,1725412255669,-500.0,0.00028614,2]
[337075541,1725412255679,-1314.8,0.00028614,2]
[337075543,1725412255688,-500.0,0.00028614,2]
[337075545,1725412255699,-500.0,0.00028614,2]
[337075547,1725412255709,-500.0,0.00028614,2]
[337075549,1725412255719,-1000.0,0.00028614,2]
[337075551,1725412255730,-500.0,0.00028614,2]
[337075554,1725412255742,-500.0,0.00028614,2]
[337075556,1725412255752,-500.0,0.00028614,2]
[337075558,1725412255763,-196.83435541,0.00028614,2]
[337075560,1725412255774,-500.0,0.00028614,2]
[337075562,1725412255783,-500.0,0.00028614,2]
[337075564,1725412255793,-500.0,0.00028614,2]
[337075566,1725412255803,-508.80577528,0.00028614,2]
[337075568,1725412255812,-500.0,0.00028614,2]
[337075570,1725412255822,-500.0,0.00028614,2]
[337075572,1725412255833,-500.0,0.00028614,2]
[337075574,1725412255843,-500.53619151,0.00028614,2]
[337075576,1725412255852,-500.0,0.00028614,2]
[337075578,1725412255862,-501.52553607,0.00028614,2]
[337075580,1725412255872,-500.0,0.00028614,2]
[337075582,1725412255883,-500.0,0.00028614,2]
[337075584,1725412255893,-501.57753876,0.00028614,2]
[337075586,1725412255903,-500.0,0.00028614,2]
[337075587,1725412255913,-500.0,0.00028614,2]
[337075588,1725412255924,-500.0,0.00028614,2]
[337075589,1725412255934,-500.0,0.00028614,2]
[337075590,1725412255944,-501.07367902,0.00028614,2]
[337075591,1725412255954,-501.98953308,0.00028614,2]
[337075592,1725412255965,-500.0,0.00028614,2]
[337075593,1725412255975,-500.0,0.00028614,2]
[337075594,1725412255985,-500.0,0.00028614,2]
[337075595,1725412255995,-500.0,0.00028614,2]
[337075596,1725412256005,-500.0,0.00028614,2]
[337075597,1725412256016,-151.0,0.00028614,7]
[337075598,1725412256026,-500.0,0.00028614,2]
[337075599,1725412256038,-832.482551,0.00028614,7]
[337075600,1725412256047,-502.14217829,0.00028614,2]
[337075602,1725412256059,-832.482551,0.00028614,7]
[337075604,1725412256069,-500.0,0.00028635,2]
[337075606,1725412256079,-500.0,0.00028635,2]
[337075608,1725412256089,-500.0,0.00028635,2]
[337075610,1725412256099,-500.0,0.00028635,2]
[337075612,1725412256109,-500.0,0.00028635,2]
[337075614,1725412256118,-500.0,0.00028635,2]
[337075616,1725412256128,-500.0,0.00028635,2]
[337075618,1725412256140,-500.0,0.00028635,2]
[337075620,1725412256152,-500.0,0.00028635,2]
[337075622,1725412256162,-500.0,0.00028635,2]
[337075624,1725412256171,-500.0,0.00028635,2]
[337075626,1725412256182,-500.0,0.00028635,2]
[337075628,1725412256193,-500.0,0.00028635,2]
[337075630,1725412256204,-500.0,0.00028635,2]
[337075633,1725412256214,-500.0,0.00028635,2]
[337075635,1725412256225,-500.0,0.00028635,2]
[337075637,1725412256236,-500.0,0.00028635,2]
[337075639,1725412256247,-500.0,0.00028635,2]
[337075641,1725412256257,-500.0,0.00028635,2]
[337075643,1725412256268,-500.0,0.00028635,2]
[337075646,1725412256279,-500.0,0.00028635,2]
[337075648,1725412256290,-555.79142541,0.00028635,2]
[337075650,1725412256299,-500.0,0.00028635,2]
[337075652,1725412256310,-500.0,0.00028635,2]
[337075654,1725412256323,-500.0,0.00028635,2]
[337075656,1725412256332,-500.0,0.00028635,2]
[337075658,1725412256343,-500.0,0.00028635,2]
[337075661,1725412256355,-503.6853565,0.00028635,2]
[337075663,1725412256368,-500.0,0.00028635,2]
[337075665,1725412256379,-500.0,0.00028635,2]
[337075667,1725412256390,-168.85099613,0.00028635,2]
[337075669,1725412256400,-3001.50841013,0.0002865,2]
[337075671,1725412256410,-500.0,0.00028653,2]
[337075673,1725412256421,-500.0,0.00028653,2]
[337075675,1725412256432,-500.0,0.00028653,2]
[337075678,1725412256442,-500.0,0.00028653,2]
[337075680,1725412256453,-501.9821477,0.00028654,2]
[337075682,1725412256463,-500.0,0.00028654,2]
[337075684,1725412256473,-500.0,0.00028654,2]
[337075686,1725412256484,-500.0,0.00028654,2]
[337075688,1725412256494,-500.0,0.00028654,2]
[337075690,1725412256504,-500.0,0.00028654,2]
[337075692,1725412256514,-557.96241269,0.00028654,2]
[337075694,1725412256524,-500.0,0.00028654,2]
[337075696,1725412256534,-500.0,0.00028654,2]
[337075698,1725412256545,-500.64624128,0.00028654,2]
[337075700,1725412256555,-500.0,0.00028654,2]
[337075702,1725412256565,-500.0,0.00028654,2]
[337075704,1725412256575,-500.0,0.00028654,2]
[337075706,1725412256585,-500.0,0.00028654,2]
[337075708,1725412256596,-500.0,0.00028654,2]
[337075710,1725412256606,-500.0,0.00028654,2]
[337075712,1725412256615,-500.0,0.00028654,2]
[337075714,1725412256625,-500.0,0.00028654,2]
[337075716,1725412256636,-400.98450915,0.00028654,2]
[337075718,1725412256646,-500.0,0.00028654,2]
[337075720,1725412256657,-500.0,0.00028654,2]
[337075723,1725412256668,-209.71596385,0.00028654,2]
[337075725,1725412256678,-500.0,0.00028654,2]
[337075727,1725412256688,-610.15116425,0.00028654,2]
[337075729,1725412256699,-503.34077295,0.00028654,2]
[337075731,1725412256709,-500.0,0.00028654,2]
[337075733,1725412256719,-500.0,0.00028654,2]
[337075735,1725412256730,-500.0,0.00028654,2]
[337075737,1725412256740,-500.0,0.00028654,2]
[337075739,1725412256752,-500.0,0.00028654,2]
[337075742,1725412256773,-500.0,0.00028654,2]
[337075745,1725412256788,-500.0,0.00028654,2]
[337075747,1725412256799,-308.136337,0.000287,30]
[337075749,1725412256809,-100159.13824004,0.00028758,2]
[337075752,1725412256832,-561.09235031,0.00028758,2]
[337075776,1725412257058,-2700.68371675,0.00028758,2]
[337075778,1725412257069,-500.0,0.00028766,2]
[337075780,1725412257078,-1078.69,0.00028766,2]
[337075782,1725412257088,-500.0,0.00028767,2]
[337075784,1725412257098,-500.0,0.00028767,2]
[337075786,1725412257108,-500.0,0.00028767,2]
[337075788,1725412257118,-500.0,0.00028767,2]
[337075790,1725412257128,-500.0,0.00028767,2]
[337075792,1725412257139,-500.0,0.00028767,2]
[337075794,1725412257150,-500.0,0.00028767,2]
[337075797,1725412257160,-206.76384839,0.00028767,2]
[337075799,1725412257172,-500.0,0.00028767,2]
[337075801,1725412257182,-500.0,0.00028767,2]
[337075803,1725412257192,-500.0,0.00028767,2]
[337075805,1725412257202,-500.0,0.00028767,2]
[337075807,1725412257212,-500.0,0.00028767,2]
[337075809,1725412257222,-500.0,0.00028767,2]
[337075811,1725412257233,-500.0,0.00028767,2]
[337075813,1725412257244,-500.0,0.00028767,2]
[337075815,1725412257253,-500.0,0.00028767,2]
[337075817,1725412257264,-1083.08,0.00028767,2]
[337075819,1725412257274,-579.23,0.00028767,2]
[337075821,1725412257284,-500.0,0.00028767,2]
[337075823,1725412257294,-500.0,0.00028767,2]
[337075826,1725412257305,-500.0,0.00028767,2]
[337075828,1725412257314,-500.0,0.00028767,2]
[337075830,1725412257324,-500.0,0.00028767,2]
[337075832,1725412257334,-1391.72,0.00028767,2]
[337075834,1725412257345,-500.0,0.00028767,2]
[337075836,1725412257354,-500.0,0.00028767,2]
[337075838,1725412257367,-636.62,0.00028767,2]
[337075841,1725412257381,-500.0,0.00028767,2]
[337075843,1725412257396,-500.0,0.00028767,2]
[337075845,1725412257414,-500.0,0.00028767,2]
[337075847,1725412257424,-500.0,0.00028767,2]
[337075849,1725412257435,-500.0,0.00028767,2]
[337075851,1725412257446,-1009.35,0.00028767,2]
[337075854,1725412257457,-500.0,0.00028767,2]
[337075856,1725412257468,-500.0,0.00028767,2]
[337075858,1725412257479,-500.0,0.00028767,2]
[337075860,1725412257490,-500.0,0.00028767,2]
[337075863,1725412257502,-500.0,0.00028767,2]
[337075865,1725412257512,-503.97730743,0.00028767,2]
[337075867,1725412257522,-500.0,0.00028767,2]
[337075869,1725412257533,-500.0,0.00028767,2]
[337075871,1725412257543,-500.0,0.00028767,2]
[337075873,1725412257553,-500.0,0.00028767,2]
[337075875,1725412257564,-500.0,0.00028767,2]
[337075877,1725412257576,-2942.04,0.00028767,2]
[337075879,1725412257586,-500.0,0.00028767,2]
[337075881,1725412257596,-500.0,0.00028767,2]
[337075884,1725412257606,-609.62,0.00028767,2]
[337075886,1725412257616,-500.0,0.00028767,2]
[337075888,1725412257625,-500.0,0.00028767,2]
[337075890,1725412257637,-500.0,0.00028767,2]
[337075892,1725412257647,-500.0,0.00028767,2]
[337075894,1725412257657,-500.0,0.00028767,2]
[337075896,1725412257667,-500.0,0.00028767,2]
[337075898,1725412257677,-500.0,0.00028767,2]
[337075900,1725412257687,-272.78858126,0.00028767,2]
[337075902,1725412257697,-756.67,0.00028767,2]
[337075904,1725412257707,-500.0,0.00028767,2]
[337075906,1725412257717,-500.0,0.00028767,2]
[337075908,1725412257727,-500.0,0.00028767,2]
[337075910,1725412257737,-500.0,0.00028767,2]
[337075912,1725412257747,-500.0,0.00028767,2]
[337075915,1725412257759,-500.0,0.00028767,2]
[337075917,1725412257769,-500.0,0.00028767,2]
[337075919,1725412257778,-500.0,0.00028767,2]
[337075921,1725412257788,-500.0,0.00028767,2]
[337075923,1725412257798,-500.0,0.00028767,2]
[337075925,1725412257809,-139.69502479,0.00028767,2]
[337075960,1725412258132,-324.04323254,0.00027396,2]
[337075962,1725412258144,-500.0,0.00027397,2]
[337075964,1725412258154,-42.13676746,0.00027671,2]
[337075980,1725412258292,-457.86323254,0.00027671,2]
[337075982,1725412258302,-500.0,0.00027945,2]
[337075984,1725412258313,-500.0,0.00028219,2]
[337075987,1725412258324,-500.0,0.00028493,2]
[337075989,1725412258334,-360.30497521,0.00028767,2]
[337075991,1725412258345,-500.0,0.00028767,2]
[337075993,1725412258356,-500.0,0.00028767,2]
[337075995,1725412258366,-500.0,0.00028767,2]
[337075997,1725412258377,-500.0,0.00028767,2]
[337076000,1725412258389,-783.29,0.00028767,2]
[337076002,1725412258399,-3455.12,0.00028767,2]
[337076004,1725412258410,-188.58272764,0.00028767,2]
[337076006,1725412258419,-500.0,0.00028767,2]
[337076008,1725412258430,-3620.6,0.00028767,2]
[337076010,1725412258441,-500.0,0.00028767,2]
[337076012,1725412258451,-500.0,0.00028767,2]
[337076014,1725412258461,-108.27724461,0.00028767,2]
[337078319,1725413141138,-1198.75027948,0.00025,4]
[337078320,1725413144085,-801.24972052,0.00025,4]
[337078321,1725413144113,-177.126645,0.00025556,2]
[337078322,1725413144238,-291.1433927,0.00025727,2]
[337078323,1725413144262,-177.126645,0.00025778,2]
[337078324,1725413144286,-300.0,0.00025921,2]
[337078325,1725413144310,-807.49247495,0.00025922,2]
[337078327,1725413245102,-240.73476977,0.00025602,2]
[337078328,1725413245134,-3637.03460938,0.00025602,2]
[337078333,1725413349232,-319.48163555,0.00024,2]
[337078662,1725413438496,-300.0,0.00025601,2]
[337078664,1725413438509,-285.99897291,0.00025601,2]
[337078667,1725413438522,-14.00102709,0.00025601,2]
[337078669,1725413438533,-3519.303776,0.00025602,2]
[337079157,1725413443339,-8304.54997204,0.00025602,2]
[337079245,1725413445511,-9198.37687281,0.00025602,2]
[337079247,1725413445522,-252.1817687,0.00025769,2]
[337079249,1725413445532,-1000.16,0.00026,4]
[337079251,1725413445541,-177.126645,0.00026,2]
[337079253,1725413445552,-177.126645,0.00026222,2]
[337079255,1725413445561,-150.0,0.000264,2]
[337079257,1725413445571,-501.0,0.00026444,2]
[337079259,1725413445581,-177.126645,0.00026444,2]
[337079262,1725413445592,-177.126645,0.00026666,2]
[337079264,1725413445603,-177.126645,0.00026888,2]
[337079266,1725413445612,-151.10598103,0.000269,2]
[337079268,1725413445622,-175.0,0.00027,2]
[337079270,1725413445631,-201.0,0.00027,2]
[337079272,1725413445640,-161.0,0.00027,2]
[337079274,1725413445650,-566.09301532,0.00027273,2]
[337079276,1725413445659,-453.36,0.00027357,3]
[337079278,1725413445669,-892.48,0.00027357,3]
[337079282,1725413445678,-586.83026278,0.00027366,2]
[337079285,1725413445688,-500.0,0.00027366,2]
[337079288,1725413445697,-212.69657719,0.00027366,2]
[337079290,1725413445708,-500.0,0.00027366,2]
[337079292,1725413445718,-500.0,0.00027366,2]
[337079294,1725413445727,-500.0,0.00027366,2]
[337079296,1725413445736,-305.89745652,0.00027366,2]
[337079298,1725413445745,-500.0,0.00027366,2]
[337079300,1725413445754,-500.0,0.00027366,2]
[337079302,1725413445763,-500.0,0.00027366,2]
[337079304,1725413445773,-500.0,0.00027366,2]
[337079306,1725413445783,-500.0,0.00027366,2]
[337079308,1725413445792,-500.0,0.00027366,2]
[337079310,1725413445802,-500.0,0.00027366,2]
[337079312,1725413445812,-500.0,0.00027366,2]
[337079314,1725413445823,-500.0,0.00027366,2]
[337079316,1725413445832,-500.0,0.00027366,2]
[337079321,1725413445842,-500.0,0.00027366,2]
[337079326,1725413445851,-500.0,0.00027366,2]
[337079330,1725413445861,-340.34064161,0.00027366,2]
[337079334,1725413445871,-500.0,0.00027366,2]
[337079338,1725413445880,-500.0,0.00027366,2]
[337079342,1725413445890,-500.0,0.00027366,2]
[337079346,1725413445900,-500.0,0.00027366,2]
[337079350,1725413445909,-404.8329907,0.00027366,2]
[337079354,1725413445919,-500.0,0.00027366,2]
[337079358,1725413445928,-500.0,0.00027366,2]
[337079364,1725413445939,-500.0,0.00027366,2]
[337079368,1725413445950,-500.0,0.00027366,2]
[337079371,1725413445960,-500.0,0.00027366,2]
[337079374,1725413445970,-500.0,0.00027366,2]
[337079377,1725413445982,-620.56692862,0.00027366,2]
[337079380,1725413445991,-500.0,0.00027366,2]
[337079383,1725413446001,-500.0,0.00027366,2]
[337079386,1725413446010,-500.0,0.00027366,2]
[337079390,1725413446020,-448.29313798,0.00027366,2]
[337079393,1725413446030,-190.02060431,0.00027366,2]
[337079396,1725413446041,-500.0,0.00027366,2]
[337079399,1725413446052,-500.0,0.00027366,2]
[337079402,1725413446067,-500.0,0.00027366,2]
[337079405,1725413446076,-208.15825509,0.00027366,2]
[337079409,1725413446086,-500.0,0.00027366,2]
[337079412,1725413446096,-500.0,0.00027366,2]
[337079417,1725413446116,-500.0,0.00027366,2]
[337079421,1725413446134,-64076.9613174,0.00027367,3]
[337079426,1725413446147,-270785.64912684,0.00027367,2]
[337079457,1725413446330,-537.23846295,0.00027367,2]
[337084813,1725414163056,-174.4,0.00027357,120]
[337084814,1725414180570,-18.98,0.00027357,120]
[337084815,1725414180735,-18.98,0.00028666,120]
[337084816,1725414180768,-434.04,0.00028666,120]
[337084821,1725414350117,-201.4213272,0.00024946,2]
[337084822,1725414350139,-163.701287,0.00025305,2]
[337084823,1725414350160,-171.164141,0.00025606,2]
[337084824,1725414350181,-760.2495268,0.00025718,2]
[337084825,1725414350204,-163.701287,0.00025744,2]
[337084826,1725414350226,-300.0,0.00026006,2]
[337084827,1725414350249,-77.22767499,0.00026006,2]
[337084828,1725414354080,-222.77232501,0.00026006,2]
[337084829,1725414354105,-492.64842653,0.00026007,2]
[337084833,1725414436098,-1074.36228679,0.00025315,2]
[337084834,1725414437211,-450.0,0.00025315,2]
[337084836,1725414446094,-667.58146982,0.00025315,2]
[337084871,1725414632271,-300.0,0.00025313,2]
[337084873,1725414632281,-22708.05624339,0.00025315,2]
[337084875,1725414632295,-163.701287,0.00026184,2]
[337084878,1725414632305,-3854.3051687,0.00026361,2]
[337084880,1725414632315,-606.768066,0.000264,2]
[337084882,1725414632324,-3854.3051687,0.00026611,2]
[337084884,1725414632333,-163.701287,0.00026624,2]
[337084886,1725414632343,-3854.30516872,0.00026992,2]
[337084888,1725414632352,-169.0,0.00027,2]
[337084890,1725414632361,-502.77,0.00027,12]
[337084892,1725414632370,-162.0,0.00027,2]
[337084894,1725414632380,-160.0,0.00027071,3]
[337084896,1725414632389,-160.0,0.00027279,4]
[337084898,1725414632399,-1274.35,0.00027317,3]
[337084900,1725414632408,-1760.45,0.00027317,3]
[337084902,1725414632418,-1467.04,0.00027317,3]
[337084904,1725414632428,-229.87825634,0.00027325,2]
[337084906,1725414632437,-500.0,0.00027325,2]
[337084908,1725414632446,-277.98585349,0.00027325,2]
[337084910,1725414632456,-205.96660883,0.00027325,2]
[337084913,1725414632467,-302.96567319,0.00027325,2]
[337084914,1725414632481,-543.99690147,0.00027325,2]
[337084917,1725414632490,-500.0,0.00027325,2]
[337084919,1725414632500,-159.01663258,0.00027325,2]
[337084921,1725414632511,-263.58118563,0.00027325,2]
[337084923,1725414632520,-427.10425304,0.00027325,2]
[337084925,1725414632531,-250.0,0.00027325,2]
[337084927,1725414632545,-500.0,0.00027325,2]
[337084929,1725414632557,-397.86242528,0.00027325,2]
[337084931,1725414632568,-500.0,0.00027325,2]
[337084933,1725414632577,-381.60374382,0.00027325,2]
[337084935,1725414632587,-530.64462628,0.00027325,2]
[337084937,1725414632596,-2605.21171055,0.00027326,15]
[337084940,1725414632609,-127010.83853506,0.00027326,3]
[337085432,1725414638533,-1222.53,0.00027317,3]
[337085433,1725414638543,-26120.66041999,0.00027326,15]
[337085434,1725414638554,-6932.80958001,0.00027326,3]
[337085435,1725414638569,-1478.11106257,0.00027326,3]
[337085460,1725414643534,-42798.46177387,0.00027326,3]
[337085463,1725414643549,-16942.27977315,0.00027326,3]
[337085465,1725414643562,-25811.49727951,0.00027326,3]
[337085501,1725414646571,-13656.39740483,0.00027326,3]
[337085503,1725414646581,-35707.10416816,0.00027326,2]
[337085505,1725414646594,-80095.28755501,0.00027326,2]
[337085529,1725414646827,-3360.76352264,0.00027326,2]
[337085530,1725414646839,-27431.10000004,0.00027326,2]
[337085531,1725414646850,-5161.0,0.00027326,2]
[337085532,1725414646861,-17374.87520924,0.00027326,2]
[337085534,1725414735093,186.11631711,0.000201,2]
[337085535,1725414735115,490.0,0.000201,2]
[337085536,1725414735147,234.37216513,0.000201,2]
[337085537,1725414735190,11260.71151776,0.000201,2]
[337085540,1725414896233,1503.427,0.000201,2]
[337085542,1725415142935,200.0,0.0002,2]
[337085545,1725415556913,-190.4544448,0.0002363,2]
[337085546,1725415556935,-541.30897876,0.00023658,2]
[337085547,1725415556975,-835.2295983,0.00024958,2]
[337085548,1725415557012,-44.50997262,0.00025206,2]
[337085549,1725415628446,-173.20079148,0.00025206,2]
[337085550,1725415628472,-38.58874635,0.00025396,2]
[337085557,1725415754113,-300.0,0.00025286,2]
[337085558,1725415754136,-16472.69202985,0.00025287,2]
[337085559,1725415757126,-7789.6133441,0.00025287,2]
[337085560,1725415758136,-236.96779854,0.00025287,2]
[337085561,1725415760131,-400.72682751,0.00025287,2]
[337085562,1725415760155,-136.07061165,0.00025396,2]
[337085563,1725415769168,-174.659358,0.0002566,2]
[337085606,1725415838910,-171.006668,0.00026075,2]
[337085607,1725415838924,-171.006668,0.00026347,2]
[337085608,1725415838934,-1006.998022,0.000264,2]
[337085609,1725415838945,-1049.93459093,0.000266,10]
[337085610,1725415838955,-171.006668,0.00026619,2]
[337085611,1725415838968,-171.006668,0.0002689,2]
[337085612,1725415838977,-1695.10555479,0.000269,2]
[337085613,1725415838986,-300.0,0.00026999,2]
[337085614,1725415838996,-10000.0,0.00027,5]
[337085615,1725415839006,-168.0,0.00027,2]
[337085616,1725415839016,-162.0,0.00027,2]
[337085617,1725415839026,-171.006668,0.00027162,2]
[337085618,1725415839037,-220.84721366,0.00027182,2]
[337085619,1725415839046,-220.84721364,0.00027183,2]
[337085620,1725415839057,-220.84721364,0.00027184,2]
[337085621,1725415839067,-1769.08,0.00027272,3]
[337085622,1725415839078,-1474.24,0.00027272,3]
[337085623,1725415839089,-217.31455498,0.00027272,3]
[337085628,1725415840844,-1011.21544502,0.00027272,3]
[337085629,1725415840854,-156.8571277,0.00027273,2]
[337085630,1725415840865,-159.01663258,0.00027281,2]
[337085631,1725415840875,-500.0,0.00027281,2]
[337085632,1725415840886,-500.0,0.00027281,2]
[337085633,1725415840895,-205.96660883,0.00027281,2]
[337085634,1725415840905,-500.0,0.00027281,2]
[337085635,1725415840916,-302.96567319,0.00027281,2]
[337085636,1725415840926,-500.0,0.00027281,2]
[337085637,1725415840936,-277.98585349,0.00027281,2]
[337085638,1725415840945,-500.0,0.00027281,2]
[337085639,1725415840956,-500.0,0.00027281,2]
[337085640,1725415840967,-530.64462628,0.00027281,2]
[337085641,1725415840977,-500.0,0.00027281,2]
[337085642,1725415840987,-293.99690147,0.00027281,2]
[337085643,1725415840998,-500.0,0.00027281,2]
[337085644,1725415841009,-500.0,0.00027281,2]
[337085645,1725415841021,-500.0,0.00027281,2]
[337085646,1725415841031,-500.0,0.00027281,2]
[337085647,1725415841041,-190.68543867,0.00027281,2]
[337085648,1725415841052,-500.0,0.00027281,2]
[337085649,1725415841063,-500.0,0.00027281,2]
[337085650,1725415841075,-500.0,0.00027281,2]
[337085651,1725415841085,-500.0,0.00027281,2]
[337085652,1725415841095,-500.0,0.00027281,2]
[337085653,1725415841107,-500.0,0.00027281,2]
[337085654,1725415841117,-500.0,0.00027281,2]
[337085655,1725415841127,-500.0,0.00027281,2]
[337085656,1725415841139,-500.0,0.00027281,2]
[337085657,1725415841150,-500.0,0.00027281,2]
[337085658,1725415841161,-500.0,0.00027281,2]
[337085659,1725415841172,-500.0,0.00027281,2]
[337085660,1725415841182,-500.0,0.00027281,2]
[337085661,1725415841191,-500.0,0.00027281,2]
[337085662,1725415841201,-500.0,0.00027281,2]
[337085663,1725415841211,-500.0,0.00027281,2]
[337085664,1725415841220,-500.0,0.00027281,2]
[337085665,1725415841230,-500.0,0.00027281,2]
[337085666,1725415841239,-500.0,0.00027281,2]
[337085667,1725415841249,-500.0,0.00027281,2]
[337085668,1725415841258,-500.0,0.00027281,2]
[337085669,1725415841268,-500.0,0.00027281,2]
[337085670,1725415841277,-524.31631704,0.00027281,2]
[337085696,1725415843668,-86.49912606,0.00027281,2]
[337085697,1725415843679,-500.0,0.00027281,2]
[337085698,1725415843688,-500.0,0.00027281,2]
[337085699,1725415843698,-500.0,0.00027281,2]
[337085700,1725415843707,-500.0,0.00027281,2]
[337085701,1725415843717,-500.0,0.00027281,2]
[337085702,1725415843726,-500.0,0.00027281,2]
[337085703,1725415843735,-500.0,0.00027281,2]
[337085704,1725415843744,-500.0,0.00027281,2]
[337085705,1725415843754,-500.0,0.00027281,2]
[337085706,1725415843763,-500.0,0.00027281,2]
[337085707,1725415843773,-195.62183159,0.00027281,2]
[337085708,1725415843783,-500.0,0.00027281,2]
[337085709,1725415843792,-500.0,0.00027281,2]
[337085710,1725415843802,-500.0,0.00027281,2]
[337085711,1725415843811,-500.0,0.00027281,2]
[337085712,1725415843821,-500.0,0.00027281,2]
[337085713,1725415843832,-500.0,0.00027281,2]
[337085714,1725415843848,-500.0,0.00027281,2]
[337085715,1725415843858,-500.0,0.00027281,2]
[337085716,1725415843868,-500.0,0.00027281,2]
[337085717,1725415843879,-500.0,0.00027281,2]
[337085718,1725415843889,-500.0,0.00027281,2]
[337085719,1725415843900,-500.0,0.00027281,2]
[337085720,1725415843910,-500.0,0.00027281,2]
[337085721,1725415843922,-500.0,0.00027281,2]
[337085722,1725415843932,-500.0,0.00027281,2]
[337085723,1725415843942,-500.0,0.00027281,2]
[337085725,1725415844060,-443.20939386,0.00027281,2]
[337085726,1725415844076,-56.79060614,0.00027281,2]
[337085727,1725415844087,-500.0,0.00027281,2]
[337085728,1725415844098,-500.0,0.00027281,2]